[Event "NJSK 2024 AmBm"]
[Site "Groningen, Netherlands"]
[Date "2024.04.29"]
[Round "3.9"]
[White "Rutten, Lenthe"]
[Black "Woldhuis, Thera"]
[Result "0-1"]
[TimeControl "90min/40moves + 30min + 30sec/move"]
[WhiteElo "1526"]
[BlackElo "1662"]

1. d4 {[%clk 01:30:57]} {[%emt 00:00:02]} Nf6 {[%clk 01:30:57]} {[%emt
00:00:04]} 2. c4 {[%clk 01:31:24]} {[%emt 00:00:03]} d6 {[%clk 01:31:20]}
{[%emt 00:00:07]} 3. Nc3 {[%clk 01:31:30]} {[%emt 00:00:24]} g6 {[%clk
01:31:44]} {[%emt 00:00:06]} 4. Bf4 {[%clk 01:31:09]} {[%emt 00:00:51]} Bg7
{[%clk 01:32:04]} {[%emt 00:00:10]} 5. e4 {[%clk 01:30:34]} {[%emt 00:01:04]}
Nc6 {[%clk 01:31:41]} {[%emt 00:00:54]} 6. d5 {[%clk 01:29:15]} {[%emt
00:01:49]} Nh5 {[%clk 01:32:01]} {[%emt 00:00:10]} 7. Be3 {[%clk 01:26:27]}
{[%emt 00:03:18]} Ne5 {[%clk 01:31:46]} {[%emt 00:00:45]} 8. h3 {[%clk
01:25:14]} {[%emt 00:01:42]} c5 {[%clk 01:31:37]} {[%emt 00:00:40]} 9. dxc6
{[%clk 01:24:01]} {[%emt 00:01:43]} bxc6 {[%clk 01:31:19]} {[%emt 00:00:48]} 10.
c5 {[%clk 01:22:33]} {[%emt 00:01:58]} O-O {[%clk 01:31:10]} {[%emt 00:00:40]}
11. f4 {[%clk 01:21:57]} {[%emt 00:01:06]} Nd7 {[%clk 01:31:16]} {[%emt
00:00:24]} 12. cxd6 {[%clk 01:21:57]} {[%emt 00:00:29]} exd6 {[%clk 01:30:46]}
{[%emt 00:01:02]} 13. Qxd6 {[%clk 01:21:41]} {[%emt 00:00:45]} Rb8 {[%clk
01:30:47]} {[%emt 00:00:28]} 14. O-O-O {[%clk 01:18:30]} {[%emt 00:03:42]} Bxc3
{[%clk 01:29:40]} {[%emt 00:01:37]} 15. bxc3 {[%clk 01:18:10]} {[%emt
00:00:50]} Qa5 {[%clk 01:30:06]} {[%emt 00:00:04]} 16. Rd2 {[%clk 01:16:17]}
{[%emt 00:02:22]} Qxc3+ {[%clk 01:30:08]} {[%emt 00:00:29]} 17. Rc2 {[%clk
01:15:00]} {[%emt 00:01:46]} Qxe3+ {[%clk 01:30:31]} {[%emt 00:00:07]} 18. Rd2
{[%clk 01:13:52]} {[%emt 00:01:39]} Ng3 {[%clk 01:30:26]} {[%emt 00:00:36]} 0-1

[Event "NJSK 2024 AmBm"]
[Site "Groningen, Netherlands"]
[Date "2024.04.30"]
[Round "4.1"]
[White "Knobbe, Elise"]
[Black "Westerhof, Fleur"]
[Result "0-1"]
[TimeControl "90min/40moves + 30min + 30sec/move"]
[WhiteElo "1785"]
[BlackElo "1916"]

1. e4 {[%clk 01:30:57]} {[%emt 00:00:02]} e5 {[%clk 01:30:54]} {[%emt
00:00:06]} 2. Nc3 {[%clk 01:31:23]} {[%emt 00:00:04]} Nf6 {[%clk 01:31:11]}
{[%emt 00:00:12]} 3. g3 {[%clk 01:31:42]} {[%emt 00:00:12]} Bc5 {[%clk
01:30:22]} {[%emt 00:01:19]} 4. Bg2 {[%clk 01:31:54]} {[%emt 00:00:18]} O-O
{[%clk 01:29:03]} {[%emt 00:01:48]} 5. Nge2 {[%clk 01:28:09]} {[%emt 00:04:16]}
Nc6 {[%clk 01:24:50]} {[%emt 00:04:43]} 6. O-O {[%clk 01:27:00]} {[%emt
00:01:40]} a6 {[%clk 01:21:28]} {[%emt 00:03:51]} 7. d3 {[%clk 01:25:05]}
{[%emt 00:02:24]} d6 {[%clk 01:20:32]} {[%emt 00:01:27]} 8. h3 {[%clk
01:24:11]} {[%emt 00:01:24]} Be6 {[%clk 01:15:54]} {[%emt 00:05:08]} 9. Be3
{[%clk 01:19:51]} {[%emt 00:04:50]} Bxe3 {[%clk 01:15:07]} {[%emt 00:01:17]} 10.
fxe3 {[%clk 01:20:13]} {[%emt 00:00:08]} d5 {[%clk 01:11:37]} {[%emt 00:04:00]}
11. exd5 {[%clk 01:11:03]} {[%emt 00:09:41]} Nxd5 {[%clk 01:11:40]} {[%emt
00:00:25]} 12. Nxd5 {[%clk 01:11:02]} {[%emt 00:00:31]} Bxd5 {[%clk 01:12:02]}
{[%emt 00:00:09]} 13. e4 {[%clk 01:09:15]} {[%emt 00:02:17]} Be6 {[%clk
01:11:24]} {[%emt 00:01:08]} 14. Kh2 {[%clk 01:08:32]} {[%emt 00:01:14]} Nd4
{[%clk 01:09:34]} {[%emt 00:02:19]} 15. c3 {[%clk 00:56:26]} {[%emt 00:12:37]}
Nxe2 {[%clk 01:07:14]} {[%emt 00:02:49]} 16. Qxe2 {[%clk 00:56:47]} {[%emt
00:00:09]} c5 {[%clk 01:05:24]} {[%emt 00:02:19]} 17. b3 {[%clk 00:52:18]}
{[%emt 00:05:01]} Qa5 {[%clk 01:01:02]} {[%emt 00:04:52]} 18. Qb2 {[%clk
00:49:29]} {[%emt 00:03:18]} Rad8 {[%clk 00:54:30]} {[%emt 00:07:02]} 19. Rad1
{[%clk 00:47:24]} {[%emt 00:02:34]} Rd7 {[%clk 00:52:14]} {[%emt 00:02:47]} 20.
Rd2 {[%clk 00:44:43]} {[%emt 00:03:11]} Rfd8 {[%clk 00:51:19]} {[%emt
00:01:24]} 21. Rfd1 {[%clk 00:43:53]} {[%emt 00:01:21]} Qb6 {[%clk 00:44:32]}
{[%emt 00:07:17]} 22. Bf1 {[%clk 00:26:15]} {[%emt 00:18:08]} h6 {[%clk
00:41:06]} {[%emt 00:03:55]} 23. c4 {[%clk 00:19:56]} {[%emt 00:06:51]} Qd6
{[%clk 00:35:08]} {[%emt 00:06:26]} 24. Rf2 {[%clk 00:18:19]} {[%emt 00:02:07]}
Qd4 {[%clk 00:35:18]} {[%emt 00:00:21]} 25. Qxd4 {[%clk 00:13:34]} {[%emt
00:05:16]} Rxd4 {[%clk 00:35:37]} {[%emt 00:00:10]} 26. Rc1 {[%clk 00:12:47]}
{[%emt 00:01:16]} Kf8 {[%clk 00:31:43]} {[%emt 00:04:24]} 27. g4 {[%clk
00:09:44]} {[%emt 00:03:34]} Ke7 {[%clk 00:30:45]} {[%emt 00:01:27]} 28. Kg3
{[%clk 00:09:32]} {[%emt 00:00:42]} R4d6 {[%clk 00:27:31]} {[%emt 00:03:45]} 29.
Be2 {[%clk 00:06:48]} {[%emt 00:03:15]} a5 {[%clk 00:23:57]} {[%emt 00:04:03]}
30. Rcf1 {[%clk 00:05:13]} {[%emt 00:02:04]} Ra8 {[%clk 00:18:35]} {[%emt
00:05:52]} 31. a4 {[%clk 00:03:24]} {[%emt 00:02:20]} Raa6 {[%clk 00:18:03]}
{[%emt 00:01:01]} 32. Rf3 {[%clk 00:02:47]} {[%emt 00:01:08]} Ra8 {[%clk
00:15:17]} {[%emt 00:03:16]} 33. R3f2 {[%clk 00:02:40]} {[%emt 00:00:38]} Rad8
{[%clk 00:13:24]} {[%emt 00:02:22]} 34. h4 {[%clk 00:02:23]} {[%emt 00:00:46]}
Rb6 {[%clk 00:13:08]} {[%emt 00:00:46]} 35. Rb1 {[%clk 00:02:42]} {[%emt
00:00:12]} Bd7 {[%clk 00:11:39]} {[%emt 00:01:58]} 36. Rff1 {[%clk 00:03:04]}
{[%emt 00:00:09]} Rf6 {[%clk 00:11:25]} {[%emt 00:00:44]} 37. Rf3 {[%clk
00:01:30]} {[%emt 00:02:04]} Bc8 {[%clk 00:09:17]} {[%emt 00:02:38]} 38. Rbf1
{[%clk 00:01:26]} {[%emt 00:00:34]} Rdd6 {[%clk 00:07:46]} {[%emt 00:02:01]} 39.
Rxf6 {[%clk 00:01:03]} {[%emt 00:00:54]} Rxf6 {[%clk 00:06:45]} {[%emt
00:01:31]} 0-1

[Event "NJSK 2024 AmBm"]
[Site "Groningen, Netherlands"]
[Date "2024.04.30"]
[Round "4.2"]
[White "Verheij, Dana"]
[Black "Gergin, Isafara"]
[Result "1/2-1/2"]
[TimeControl "90min/40moves + 30min + 30sec/move"]
[WhiteElo "1923"]
[BlackElo "1888"]

1. e4 {[%clk 01:30:58]} {[%emt 00:00:02]} c6 {[%clk 01:30:49]} {[%emt
00:00:11]} 2. d4 {[%clk 01:31:22]} {[%emt 00:00:05]} d5 {[%clk 01:31:16]}
{[%emt 00:00:04]} 3. exd5 {[%clk 01:31:48]} {[%emt 00:00:05]} cxd5 {[%clk
01:31:41]} {[%emt 00:00:05]} 4. Nf3 {[%clk 01:32:10]} {[%emt 00:00:07]} Nc6
{[%clk 01:32:03]} {[%emt 00:00:08]} 5. Ne5 {[%clk 01:32:01]} {[%emt 00:00:40]}
a6 {[%clk 01:32:23]} {[%emt 00:00:09]} 6. c3 {[%clk 01:31:23]} {[%emt
00:01:08]} Nxe5 {[%clk 01:32:14]} {[%emt 00:00:40]} 7. dxe5 {[%clk 01:31:49]}
{[%emt 00:00:04]} Bf5 {[%clk 01:32:31]} {[%emt 00:00:12]} 8. Be3 {[%clk
01:31:10]} {[%emt 00:01:09]} e6 {[%clk 01:32:03]} {[%emt 00:00:58]} 9. Nd2
{[%clk 01:29:54]} {[%emt 00:01:46]} Ne7 {[%clk 01:31:03]} {[%emt 00:01:30]} 10.
f4 {[%clk 01:25:51]} {[%emt 00:04:32]} Nc6 {[%clk 01:30:14]} {[%emt 00:01:20]}
11. Nf3 {[%clk 01:25:36]} {[%emt 00:00:45]} Be7 {[%clk 01:28:36]} {[%emt
00:02:07]} 12. Bd3 {[%clk 01:24:59]} {[%emt 00:01:07]} Bxd3 {[%clk 01:27:43]}
{[%emt 00:01:24]} 13. Qxd3 {[%clk 01:25:25]} {[%emt 00:00:04]} Qc7 {[%clk
01:27:31]} {[%emt 00:00:41]} 14. O-O {[%clk 01:24:02]} {[%emt 00:01:53]} Na5
{[%clk 01:20:10]} {[%emt 00:07:51]} 15. b3 {[%clk 00:57:56]} {[%emt 00:26:37]}
g6 {[%clk 01:00:35]} {[%emt 00:20:04]} 16. Kh1 {[%clk 00:55:38]} {[%emt
00:02:48]} b5 {[%clk 00:58:36]} {[%emt 00:02:29]} 17. Nd4 {[%clk 00:45:24]}
{[%emt 00:10:44]} Nb7 {[%clk 00:44:13]} {[%emt 00:14:53]} 18. Rac1 {[%clk
00:35:15]} {[%emt 00:10:39]} Rc8 {[%clk 00:40:00]} {[%emt 00:04:44]} 19. Qe2
{[%clk 00:20:49]} {[%emt 00:14:55]} h5 {[%clk 00:32:45]} {[%emt 00:07:45]} 20.
a4 {[%clk 00:20:47]} {[%emt 00:00:32]} bxa4 {[%clk 00:28:23]} {[%emt 00:04:52]}
21. Qxa6 {[%clk 00:18:41]} {[%emt 00:02:37]} axb3 {[%clk 00:22:59]} {[%emt
00:05:53]} 22. Nxb3 {[%clk 00:15:56]} {[%emt 00:03:14]} O-O {[%clk 00:20:55]}
{[%emt 00:02:34]} 23. Bd4 {[%clk 00:12:04]} {[%emt 00:04:22]} Nc5 {[%clk
00:16:32]} {[%emt 00:04:53]} 24. Nxc5 {[%clk 00:11:13]} {[%emt 00:01:21]} Bxc5
{[%clk 00:16:55]} {[%emt 00:00:06]} 25. h3 {[%clk 00:08:29]} {[%emt 00:03:14]}
Bxd4 {[%clk 00:15:32]} {[%emt 00:01:54]} 26. cxd4 {[%clk 00:08:54]} {[%emt
00:00:06]} Qxc1 {[%clk 00:15:54]} {[%emt 00:00:07]} 27. Rxc1 {[%clk 00:09:21]}
{[%emt 00:00:03]} Rxc1+ {[%clk 00:16:18]} {[%emt 00:00:06]} 28. Kh2 {[%clk
00:09:48]} {[%emt 00:00:02]} Rc4 {[%clk 00:15:35]} {[%emt 00:01:12]} 29. g4
{[%clk 00:06:35]} {[%emt 00:03:44]} h4 {[%clk 00:08:27]} {[%emt 00:07:39]} 30.
Qa7 {[%clk 00:03:19]} {[%emt 00:03:47]} Rc2+ {[%clk 00:07:37]} {[%emt
00:01:18]} 31. Kg1 {[%clk 00:03:42]} {[%emt 00:00:07]} Rfc8 {[%clk 00:06:32]}
{[%emt 00:01:36]} 32. f5 {[%clk 00:00:58]} {[%emt 00:03:14]} gxf5 {[%clk
00:03:55]} {[%emt 00:03:06]} 33. gxf5 {[%clk 00:01:13]} {[%emt 00:00:16]} Rb2
{[%clk 00:03:17]} {[%emt 00:01:08]} 34. Qa1 {[%clk 00:01:37]} {[%emt 00:00:06]}
Rb3 {[%clk 00:02:41]} {[%emt 00:01:05]} 35. Qd1 {[%clk 00:00:42]} {[%emt
00:01:25]} Rg3+ {[%clk 00:02:19]} {[%emt 00:00:52]} 36. Kf2 {[%clk 00:00:53]}
{[%emt 00:00:19]} Rcc3 {[%clk 00:01:18]} {[%emt 00:01:31]} 37. fxe6 {[%clk
00:00:46]} {[%emt 00:00:38]} fxe6 {[%clk 00:01:38]} {[%emt 00:00:11]} 38. Qh5
{[%clk 00:00:51]} {[%emt 00:00:24]} Rc2+ {[%clk 00:01:09]} {[%emt 00:00:59]} 39.
Kf1 {[%clk 00:01:17]} {[%emt 00:00:04]} Rc1+ {[%clk 00:00:59]} {[%emt
00:00:40]} 40. Kf2 {[%clk 00:01:30]} {[%emt 00:00:16]} Rc2+ {[%clk 00:00:44]}
{[%emt 00:00:45]} 41. Kf1 {[%clk 00:01:54]} {[%emt 00:00:06]} 1/2-1/2

[Event "NJSK 2024 AmBm"]
[Site "Groningen, Netherlands"]
[Date "2024.04.30"]
[Round "4.3"]
[White "Feng, Elysia"]
[Black "Tangarife Ramirez, Katja"]
[Result "1-0"]
[TimeControl "90min/40moves + 30min + 30sec/move"]
[WhiteElo "1862"]
[BlackElo "1742"]

1. e4 {[%clk 01:30:59]} c6 {[%clk 01:30:56]} {[%emt 00:00:06]} 2. d4 {[%clk
01:31:25]} {[%emt 00:00:03]} d5 {[%clk 01:31:24]} {[%emt 00:00:02]} 3. Nc3
{[%clk 01:31:49]} {[%emt 00:00:06]} dxe4 {[%clk 01:31:48]} {[%emt 00:00:07]} 4.
Nxe4 {[%clk 01:32:15]} {[%emt 00:00:04]} Bf5 {[%clk 01:32:13]} {[%emt
00:00:05]} 5. Ng3 {[%clk 01:32:40]} {[%emt 00:00:04]} Bg6 {[%clk 01:32:38]}
{[%emt 00:00:05]} 6. Nh3 {[%clk 01:33:06]} {[%emt 00:00:04]} h6 {[%clk
01:29:31]} {[%emt 00:03:37]} 7. Nf4 {[%clk 01:33:27]} {[%emt 00:00:09]} Bh7
{[%clk 01:29:30]} {[%emt 00:00:32]} 8. Bc4 {[%clk 01:33:43]} {[%emt 00:00:13]}
Nf6 {[%clk 01:28:15]} {[%emt 00:01:45]} 9. O-O {[%clk 01:32:38]} {[%emt
00:01:34]} g6 {[%clk 01:16:34]} {[%emt 00:12:12]} 10. Qf3 {[%clk 01:21:14]}
{[%emt 00:11:54]} e6 {[%clk 01:06:32]} {[%emt 00:10:32]} 11. Re1 {[%clk
01:18:51]} {[%emt 00:02:53]} Be7 {[%clk 00:57:06]} {[%emt 00:09:56]} 12. Nxe6
{[%clk 01:10:09]} {[%emt 00:09:11]} fxe6 {[%clk 00:54:51]} {[%emt 00:02:46]} 13.
Rxe6 {[%clk 01:10:24]} {[%emt 00:00:14]} Nbd7 {[%clk 00:50:05]} {[%emt
00:05:17]} 14. Ne4 {[%clk 00:55:48]} {[%emt 00:15:06]} Nxe4 {[%clk 00:40:20]}
{[%emt 00:10:14]} 15. Rxe4 {[%clk 00:56:11]} {[%emt 00:00:07]} Rf8 {[%clk
00:36:38]} {[%emt 00:04:13]} 16. Qb3 {[%clk 00:46:40]} {[%emt 00:10:01]} g5
{[%clk 00:32:02]} {[%emt 00:05:05]} 17. Re2 {[%clk 00:44:09]} {[%emt 00:03:01]}
Nb6 {[%clk 00:28:54]} {[%emt 00:03:40]} 18. Be6 {[%clk 00:43:27]} {[%emt
00:01:10]} Bf5 {[%clk 00:22:33]} {[%emt 00:06:51]} 19. Bd2 {[%clk 00:34:43]}
{[%emt 00:09:14]} Bxe6 {[%clk 00:14:28]} {[%emt 00:08:35]} 20. Qxe6 {[%clk
00:35:00]} {[%emt 00:00:13]} Qd7 {[%clk 00:11:59]} {[%emt 00:02:59]} 21. Qg6+
{[%clk 00:32:14]} {[%emt 00:03:17]} Kd8 {[%clk 00:09:25]} {[%emt 00:03:04]} 22.
Qxh6 {[%clk 00:32:25]} {[%emt 00:00:19]} Qd6 {[%clk 00:06:26]} {[%emt
00:03:29]} 23. Qh5 {[%clk 00:26:49]} {[%emt 00:06:06]} Kc7 {[%clk 00:06:23]}
{[%emt 00:00:33]} 24. Rae1 {[%clk 00:24:52]} {[%emt 00:02:26]} Bf6 {[%clk
00:05:23]} {[%emt 00:01:31]} 25. g3 {[%clk 00:23:33]} {[%emt 00:01:48]} Qxd4
{[%clk 00:04:03]} {[%emt 00:01:50]} 26. Qh7+ {[%clk 00:18:45]} {[%emt
00:05:19]} Qd7 {[%clk 00:03:57]} {[%emt 00:00:36]} 27. Re7 {[%clk 00:18:45]}
{[%emt 00:00:30]} Bxe7 {[%clk 00:03:29]} {[%emt 00:00:58]} 28. Rxe7 {[%clk
00:19:11]} {[%emt 00:00:04]} Rad8 {[%clk 00:03:18]} {[%emt 00:00:41]} 29. Bxg5
{[%clk 00:19:04]} {[%emt 00:00:36]} Kc8 {[%clk 00:03:00]} {[%emt 00:00:49]} 30.
Rxd7 {[%clk 00:19:19]} {[%emt 00:00:16]} Rxd7 {[%clk 00:03:22]} {[%emt
00:00:07]} 31. Qh6 {[%clk 00:18:59]} {[%emt 00:00:49]} Rdf7 {[%clk 00:02:48]}
{[%emt 00:01:03]} 32. Qe6+ {[%clk 00:18:47]} {[%emt 00:00:43]} Kb8 {[%clk
00:03:05]} {[%emt 00:00:14]} 33. f4 {[%clk 00:18:08]} {[%emt 00:01:09]} Nd5
{[%clk 00:03:20]} {[%emt 00:00:15]} 34. c4 {[%clk 00:18:07]} {[%emt 00:00:31]}
Nc7 {[%clk 00:03:23]} {[%emt 00:00:27]} 35. Qd6 {[%clk 00:17:06]} {[%emt
00:01:30]} Ka8 {[%clk 00:03:25]} {[%emt 00:00:28]} 36. Bd8 {[%clk 00:15:45]}
{[%emt 00:01:51]} Ne8 {[%clk 00:03:10]} {[%emt 00:00:45]} 37. Qe6 {[%clk
00:15:52]} {[%emt 00:00:23]} a6 {[%clk 00:02:52]} {[%emt 00:00:49]} 38. Qc8+
{[%clk 00:16:00]} {[%emt 00:00:21]} Ka7 {[%clk 00:03:15]} {[%emt 00:00:08]} 39.
c5 {[%clk 00:16:19]} {[%emt 00:00:11]} Nc7 {[%clk 00:03:20]} {[%emt 00:00:25]}
40. h4 {[%clk 00:13:53]} {[%emt 00:02:56]} a5 {[%clk 00:00:41]} {[%emt
00:03:09]} 41. h5 {[%clk 00:13:02]} {[%emt 00:01:20]} Re7 {[%clk 00:23:15]}
{[%emt 00:07:57]} 42. Kf2 {[%clk 00:42:13]} {[%emt 00:01:18]} Ne6 {[%clk
00:22:20]} {[%emt 00:01:26]} 43. Bxe7 {[%clk 00:36:35]} {[%emt 00:06:08]} Rxc8
{[%clk 00:22:38]} {[%emt 00:00:12]} 44. f5 {[%clk 00:36:24]} {[%emt 00:00:41]}
Re8 {[%clk 00:12:59]} {[%emt 00:10:09]} 45. f6 {[%clk 00:35:54]} {[%emt
00:01:00]} Ng5 {[%clk 00:12:56]} {[%emt 00:00:33]} 46. g4 {[%clk 00:35:21]}
{[%emt 00:01:03]} Kb8 {[%clk 00:09:18]} {[%emt 00:04:08]} 47. Kg3 {[%clk
00:35:39]} {[%emt 00:00:13]} Nf7 {[%clk 00:07:09]} {[%emt 00:02:39]} 48. Kf4
{[%clk 00:35:30]} {[%emt 00:00:39]} Rg8 {[%clk 00:06:59]} {[%emt 00:00:40]} 49.
Kf5 {[%clk 00:34:31]} {[%emt 00:01:29]} Ng5 {[%clk 00:04:38]} {[%emt 00:02:51]}
50. h6 {[%clk 00:32:49]} {[%emt 00:02:12]} Kc7 {[%clk 00:04:39]} {[%emt
00:00:30]} 51. f7 {[%clk 00:29:39]} {[%emt 00:03:40]} Nxf7 {[%clk 00:04:38]}
{[%emt 00:00:30]} 52. g5 {[%clk 00:29:44]} {[%emt 00:00:26]} Kd7 {[%clk
00:03:53]} {[%emt 00:01:14]} 53. Bf6 {[%clk 00:28:45]} {[%emt 00:01:29]} Nh8
{[%clk 00:01:58]} {[%emt 00:02:26]} 54. h7 {[%clk 00:26:31]} {[%emt 00:02:44]}
Rf8 {[%clk 00:01:30]} {[%emt 00:00:58]} 55. g6 {[%clk 00:26:53]} {[%emt
00:00:08]} Nxg6 {[%clk 00:01:51]} {[%emt 00:00:08]} 56. Kxg6 {[%clk 00:27:17]}
{[%emt 00:00:06]} Ke6 {[%clk 00:02:16]} {[%emt 00:00:06]} 57. h8=Q {[%clk
00:27:28]} {[%emt 00:00:19]} Rxh8 {[%clk 00:02:39]} {[%emt 00:00:07]} 58. Bxh8
{[%clk 00:27:53]} {[%emt 00:00:05]} Kd5 {[%clk 00:03:01]} {[%emt 00:00:07]} 59.
Bc3 {[%clk 00:28:05]} {[%emt 00:00:18]} Kxc5 {[%clk 00:02:05]} {[%emt
00:01:27]} 60. Bxa5 {[%clk 00:28:31]} {[%emt 00:00:04]} b5 {[%clk 00:02:05]}
{[%emt 00:00:30]} 61. a3 {[%clk 00:28:17]} {[%emt 00:00:44]} Kd5 {[%clk
00:00:51]} {[%emt 00:01:43]} 62. Kf5 {[%clk 00:28:33]} {[%emt 00:00:15]} Kc4
{[%clk 00:00:33]} {[%emt 00:00:48]} 63. Bc3 {[%clk 00:28:20]} {[%emt 00:00:42]}
Kd5 {[%clk 00:00:53]} {[%emt 00:00:10]} 64. Be5 {[%clk 00:28:20]} {[%emt
00:00:30]} c5 {[%clk 00:01:05]} {[%emt 00:00:19]} 65. Bc3 {[%clk 00:28:13]}
{[%emt 00:00:37]} Kc4 {[%clk 00:01:26]} {[%emt 00:00:09]} 66. Ke4 {[%clk
00:28:10]} {[%emt 00:00:32]} b4 {[%clk 00:01:48]} {[%emt 00:00:09]} 67. axb4
{[%clk 00:28:36]} {[%emt 00:00:04]} cxb4 {[%clk 00:02:12]} {[%emt 00:00:06]} 68.
Bd4 {[%clk 00:29:00]} {[%emt 00:00:06]} b3 {[%clk 00:01:34]} {[%emt 00:01:08]}
69. Be3 {[%clk 00:29:08]} {[%emt 00:00:21]} Kb5 {[%clk 00:00:48]} {[%emt
00:01:17]} 70. Kd4 {[%clk 00:29:30]} {[%emt 00:00:08]} Kb4 {[%clk 00:01:03]}
{[%emt 00:00:15]} 71. Bd2+ {[%clk 00:29:54]} {[%emt 00:00:07]} Kb5 {[%clk
00:01:13]} {[%emt 00:00:20]} 72. Kc3 {[%clk 00:30:15]} {[%emt 00:00:08]} Ka4
{[%clk 00:01:37]} {[%emt 00:00:06]} 73. Be1 {[%clk 00:30:41]} {[%emt 00:00:04]}
1-0

[Event "NJSK 2024 AmBm"]
[Site "Groningen, Netherlands"]
[Date "2024.04.30"]
[Round "4.4"]
[White "Oostinga, Elisa"]
[Black "Kulikova, Polina"]
[Result "0-1"]
[TimeControl "90min/40moves + 30min + 30sec/move"]
[WhiteElo "1713"]
[BlackElo "1690"]

1. e4 {[%clk 01:30:57]} {[%emt 00:00:01]} c6 {[%clk 01:31:00]} {[%emt
00:00:02]} 2. d4 {[%clk 01:31:17]} {[%emt 00:00:10]} d5 {[%clk 01:31:29]} 3. e5
{[%clk 01:31:25]} {[%emt 00:00:21]} c5 {[%clk 01:31:57]} {[%emt 00:00:02]} 4.
c3 {[%clk 01:29:33]} {[%emt 00:02:22]} Nc6 {[%clk 01:32:10]} {[%emt 00:00:17]}
5. Nf3 {[%clk 01:23:43]} {[%emt 00:06:20]} Bg4 {[%clk 01:32:23]} {[%emt
00:00:17]} 6. Be2 {[%clk 01:19:49]} {[%emt 00:04:24]} e6 {[%clk 01:32:21]}
{[%emt 00:00:33]} 7. Be3 {[%clk 01:04:11]} {[%emt 00:16:07]} cxd4 {[%clk
01:31:37]} {[%emt 00:01:14]} 8. Nxd4 {[%clk 00:53:05]} {[%emt 00:11:35]} Bxe2
{[%clk 01:30:32]} {[%emt 00:01:35]} 9. Qxe2 {[%clk 00:51:28]} {[%emt 00:02:08]}
Nxe5 {[%clk 01:21:21]} {[%emt 00:09:42]} 10. O-O {[%clk 00:41:23]} {[%emt
00:10:34]} Nc6 {[%clk 01:15:46]} {[%emt 00:06:06]} 11. Nd2 {[%clk 00:39:00]}
{[%emt 00:02:52]} Nxd4 {[%clk 01:01:20]} {[%emt 00:14:56]} 12. Bxd4 {[%clk
00:39:11]} {[%emt 00:00:18]} Ne7 {[%clk 01:01:05]} {[%emt 00:00:46]} 13. Rfd1
{[%clk 00:33:17]} {[%emt 00:06:25]} Nc6 {[%clk 00:58:30]} {[%emt 00:03:04]} 14.
Nf3 {[%clk 00:26:46]} {[%emt 00:07:01]} Qc7 {[%clk 00:39:44]} {[%emt 00:19:16]}
15. Rac1 {[%clk 00:25:02]} {[%emt 00:02:14]} Nxd4 {[%clk 00:28:04]} {[%emt
00:12:09]} 16. Nxd4 {[%clk 00:10:25]} {[%emt 00:15:07]} a6 {[%clk 00:27:20]}
{[%emt 00:01:15]} 17. c4 {[%clk 00:10:13]} {[%emt 00:00:42]} Rc8 {[%clk
00:26:26]} {[%emt 00:01:24]} 18. b3 {[%clk 00:08:38]} {[%emt 00:02:05]} Ba3
{[%clk 00:22:13]} {[%emt 00:04:43]} 19. Rc3 {[%clk 00:06:51]} {[%emt 00:02:15]}
O-O {[%clk 00:19:47]} {[%emt 00:02:57]} 20. Qh5 {[%clk 00:05:33]} {[%emt
00:01:48]} dxc4 {[%clk 00:09:23]} {[%emt 00:10:55]} 21. Rh3 {[%clk 00:04:57]}
{[%emt 00:01:05]} h6 {[%clk 00:08:46]} {[%emt 00:01:07]} 22. bxc4 {[%clk
00:03:18]} {[%emt 00:02:10]} Be7 {[%clk 00:06:37]} {[%emt 00:02:39]} 23. g4
{[%clk 00:02:47]} {[%emt 00:01:00]} Bg5 {[%clk 00:05:15]} {[%emt 00:01:55]} 24.
Rg3 {[%clk 00:03:00]} {[%emt 00:00:13]} g6 {[%clk 00:02:46]} {[%emt 00:02:59]}
25. Qh3 {[%clk 00:03:24]} {[%emt 00:00:06]} Qxc4 {[%clk 00:02:53]} {[%emt
00:00:23]} 26. Nf3 {[%clk 00:03:25]} {[%emt 00:00:28]} Qf4 {[%clk 00:02:36]}
{[%emt 00:00:48]} 27. Rd4 {[%clk 00:03:16]} {[%emt 00:00:39]} Qc1+ {[%clk
00:02:23]} {[%emt 00:00:43]} 28. Qf1 {[%clk 00:02:22]} {[%emt 00:01:24]} Qxf1+
{[%clk 00:02:05]} {[%emt 00:00:48]} 29. Kxf1 {[%clk 00:02:48]} {[%emt
00:00:04]} Bf6 {[%clk 00:01:47]} {[%emt 00:00:48]} 30. Rb4 {[%clk 00:02:30]}
{[%emt 00:00:47]} b5 {[%clk 00:01:41]} {[%emt 00:00:37]} 31. g5 {[%clk
00:02:43]} {[%emt 00:00:16]} Bxg5 {[%clk 00:01:29]} {[%emt 00:00:42]} 32. Nxg5
{[%clk 00:03:01]} {[%emt 00:00:13]} hxg5 {[%clk 00:01:58]} 33. Rxg5 {[%clk
00:03:30]} {[%emt 00:00:01]} Rc1+ {[%clk 00:02:01]} {[%emt 00:00:28]} 34. Kg2
{[%clk 00:03:46]} {[%emt 00:00:13]} Rfc8 {[%clk 00:01:56]} {[%emt 00:00:35]} 35.
h4 {[%clk 00:04:01]} {[%emt 00:00:16]} R8c5 {[%clk 00:01:25]} {[%emt 00:01:00]}
36. Rgg4 {[%clk 00:04:10]} {[%emt 00:00:20]} R1c4 {[%clk 00:01:27]} {[%emt
00:00:29]} 37. Kf3 {[%clk 00:04:15]} {[%emt 00:00:25]} Kh7 {[%clk 00:00:56]}
{[%emt 00:01:01]} 38. Rgxc4 {[%clk 00:02:14]} {[%emt 00:02:31]} bxc4 {[%clk
00:00:50]} {[%emt 00:00:36]} 39. Ke4 {[%clk 00:02:31]} {[%emt 00:00:13]} c3
{[%clk 00:01:06]} {[%emt 00:00:14]} 40. Rb1 {[%clk 00:02:56]} {[%emt 00:00:05]}
c2 {[%clk 00:01:23]} {[%emt 00:00:14]} 41. Rc1 {[%clk 00:03:21]} {[%emt
00:00:06]} f6 {[%clk 00:01:08]} {[%emt 00:00:45]} 42. Kd3 {[%clk 00:03:40]}
{[%emt 00:00:11]} Kh6 {[%clk 00:00:41]} {[%emt 00:00:57]} 43. Rxc2 {[%clk
00:03:27]} {[%emt 00:00:43]} Rxc2 {[%clk 00:20:15]} {[%emt 00:10:55]} 44. Kxc2
{[%clk 00:33:49]} {[%emt 00:00:08]} g5 {[%clk 00:20:13]} {[%emt 00:00:32]} 45.
hxg5+ {[%clk 00:33:31]} {[%emt 00:00:47]} Kxg5 {[%clk 00:20:32]} {[%emt
00:00:11]} 46. Kd3 {[%clk 00:27:06]} {[%emt 00:06:56]} Kf4 {[%clk 00:20:34]}
{[%emt 00:00:28]} 47. Ke2 {[%clk 00:27:03]} {[%emt 00:00:33]} e5 {[%clk
00:11:33]} {[%emt 00:09:31]} 48. f3 {[%clk 00:24:51]} {[%emt 00:02:42]} a5
{[%clk 00:09:11]} {[%emt 00:02:53]} 49. Kf2 {[%clk 00:23:10]} {[%emt 00:02:10]}
a4 {[%clk 00:09:34]} {[%emt 00:00:07]} 50. a3 {[%clk 00:22:30]} {[%emt
00:01:10]} e4 {[%clk 00:09:17]} {[%emt 00:00:46]} 51. fxe4 {[%clk 00:21:59]}
{[%emt 00:01:02]} Kxe4 {[%clk 00:09:38]} {[%emt 00:00:09]} 0-1